[Event "Early-Titled-Tuesday-Blitz-April-16-2024"]
[Site "Chess.com"]
[Date "2024.04.16"]
[Round "7"]
[White "MrVenky"]
[Black "albi1999"]
[Result "0-1"]
[WhiteElo "2529"]
[BlackElo "2647"]
[TimeControl "180+1"]
[EndTime "9:22:25 PDT"]
[Termination "albi1999 won by resignation"]

1. e4 {[%clk 0:03:00.9]} 1... c5 {[%clk 0:02:59.5]} 2. Nc3 {[%clk 0:03:00.2]}
2... a6 {[%clk 0:02:59.8]} 3. g3 {[%clk 0:02:59]} 3... b5 {[%clk 0:03:00.2]} 4.
Bg2 {[%clk 0:02:59.2]} 4... Bb7 {[%clk 0:03:01.1]} 5. Nge2 {[%clk 0:02:59.1]}
5... g6 {[%clk 0:03:01.4]} 6. d4 {[%clk 0:02:58.8]} 6... cxd4 {[%clk 0:03:01.3]}
7. Nxd4 {[%clk 0:02:58.8]} 7... Bg7 {[%clk 0:03:01.8]} 8. O-O {[%clk 0:02:58.7]}
8... d6 {[%clk 0:03:02.4]} 9. a4 {[%clk 0:02:57.9]} 9... bxa4 {[%clk 0:02:47.9]}
10. Nxa4 {[%clk 0:02:54.3]} 10... Nd7 {[%clk 0:02:37.9]} 11. Be3 {[%clk
0:02:49.1]} 11... Qc7 {[%clk 0:02:35.2]} 12. Ra3 {[%clk 0:02:31]} 12... Rc8
{[%clk 0:02:15.6]} 13. Rc3 {[%clk 0:02:26.3]} 13... Qb8 {[%clk 0:02:15.8]} 14.
Rxc8+ {[%clk 0:02:25.4]} 14... Qxc8 {[%clk 0:02:16.7]} 15. Bh3 {[%clk
0:02:15.6]} 15... Qc7 {[%clk 0:01:57.2]} 16. Bxd7+ {[%clk 0:02:00.7]} 16... Qxd7
{[%clk 0:01:56.7]} 17. Nb6 {[%clk 0:02:00.2]} 17... Qd8 {[%clk 0:01:55.2]} 18.
Nb3 {[%clk 0:01:41.7]} 18... Nf6 {[%clk 0:01:47.7]} 19. e5 {[%clk 0:01:29.9]}
19... Ne4 {[%clk 0:01:29.8]} 20. Na5 {[%clk 0:01:27.7]} 20... Qc7 {[%clk
0:01:11.5]} 21. exd6 {[%clk 0:00:58.7]} 21... Nxd6 {[%clk 0:01:11.1]} 22. Nxb7
{[%clk 0:00:58.3]} 22... Qxb7 {[%clk 0:01:10.8]} 23. c4 {[%clk 0:00:58.1]} 23...
O-O {[%clk 0:01:04.5]} 24. c5 {[%clk 0:00:58.3]} 24... Nc8 {[%clk 0:00:57.5]}
25. b4 {[%clk 0:00:57.3]} 25... Nxb6 {[%clk 0:00:54.8]} 26. cxb6 {[%clk
0:00:57.6]} 26... Be5 {[%clk 0:00:49.3]} 27. Qa4 {[%clk 0:00:56.5]} 27... Rd8
{[%clk 0:00:33.4]} 28. Qa5 {[%clk 0:00:56]} 28... Bd4 {[%clk 0:00:30.9]} 29. Rd1
{[%clk 0:00:52.9]} 29... e5 {[%clk 0:00:24.3]} 30. Bxd4 {[%clk 0:00:39.3]} 30...
exd4 {[%clk 0:00:21.1]} 31. Qc5 {[%clk 0:00:39.3]} 31... d3 {[%clk 0:00:19.1]}
32. Qc7 {[%clk 0:00:39.3]} 32... Qxc7 {[%clk 0:00:17.9]} 33. bxc7 {[%clk
0:00:39.4]} 33... Rc8 {[%clk 0:00:18.3]} 34. Rxd3 {[%clk 0:00:39.1]} 34... Rxc7
{[%clk 0:00:18.9]} 35. Rd6 {[%clk 0:00:39]} 35... Rc1+ {[%clk 0:00:18]} 36. Kg2
{[%clk 0:00:38.5]} 36... Rb1 {[%clk 0:00:18.6]} 37. Rxa6 {[%clk 0:00:38.3]}
37... Rxb4 {[%clk 0:00:18.5]} 38. h4 {[%clk 0:00:39]} 38... h5 {[%clk
0:00:18.6]} 39. Ra5 {[%clk 0:00:38.7]} 39... Kg7 {[%clk 0:00:17.9]} 40. Re5
{[%clk 0:00:39.1]} 40... Rb3 {[%clk 0:00:18.2]} 41. Kf1 {[%clk 0:00:38.4]} 41...
Rb1+ {[%clk 0:00:18.3]} 42. Ke2 {[%clk 0:00:38.2]} 42... Rb2+ {[%clk 0:00:18.8]}
43. Kf3 {[%clk 0:00:38.6]} 43... Rb3+ {[%clk 0:00:19.4]} 44. Re3 {[%clk
0:00:38.7]} 44... Rb6 {[%clk 0:00:19.8]} 45. Kf4 {[%clk 0:00:38.1]} 45... Rf6+
{[%clk 0:00:20.3]} 46. Ke4 {[%clk 0:00:33.5]} 46... Rxf2 {[%clk 0:00:20.5]} 47.
Rf3 {[%clk 0:00:30.7]} 47... Rxf3 {[%clk 0:00:19.6]} 48. Kxf3 {[%clk 0:00:30.9]}
48... f6 {[%clk 0:00:16.6]} 49. Kf4 {[%clk 0:00:30.6]} 49... Kf7 {[%clk
0:00:16.8]} 50. Ke4 {[%clk 0:00:24.7]} 50... Ke7 {[%clk 0:00:15.7]} 51. Kf4
{[%clk 0:00:25]} 51... Kd6 {[%clk 0:00:14.7]} 52. Ke4 {[%clk 0:00:24.5]} 52...
Ke6 {[%clk 0:00:14.9]} 53. Kf4 {[%clk 0:00:23]} 53... Kd5 {[%clk 0:00:15]} 54.
g4 {[%clk 0:00:22.7]} 54... hxg4 {[%clk 0:00:10.9]} 55. Kxg4 {[%clk 0:00:22.3]}
55... Ke4 {[%clk 0:00:11.4]} 56. Kg3 {[%clk 0:00:19.7]} 56... Ke3 {[%clk
0:00:12]} 57. Kg4 {[%clk 0:00:17.7]} 57... Ke4 {[%clk 0:00:10.1]} 58. Kg3 {[%clk
0:00:17.8]} 58... f5 {[%clk 0:00:10.7]} 59. Kg2 {[%clk 0:00:11.9]} 59... Kf4
{[%clk 0:00:10.8]} 60. Kh3 {[%clk 0:00:12.1]} 60... Kf3 {[%clk 0:00:10.4]} 61.
h5 {[%clk 0:00:09.5]} 61... gxh5 {[%clk 0:00:11.3]} 62. Kh4 {[%clk 0:00:09.5]}
62... f4 {[%clk 0:00:11.5]} 63. Kxh5 {[%clk 0:00:08.9]} 63... Kg3 {[%clk
0:00:11.9]} 0-1

[Event "Early-Titled-Tuesday-Blitz-April-16-2024"]
[Site "Chess.com"]
[Date "2024.04.16"]
[Round "7"]
[White "baki83"]
[Black "Root_21"]
[Result "1-0"]
[WhiteElo "2917"]
[BlackElo "2633"]
[TimeControl "180+1"]
[EndTime "9:22:31 PDT"]
[Termination "baki83 won by checkmate"]

1. e4 {[%clk 0:03:00.9]} 1... c5 {[%clk 0:03:00]} 2. Nf3 {[%clk 0:03:01.2]} 2...
d6 {[%clk 0:03:00.5]} 3. Bb5+ {[%clk 0:03:01.3]} 3... Bd7 {[%clk 0:02:59.5]} 4.
Bxd7+ {[%clk 0:03:00.1]} 4... Nxd7 {[%clk 0:03:00.4]} 5. O-O {[%clk 0:03:00.7]}
5... Ngf6 {[%clk 0:03:00.7]} 6. Re1 {[%clk 0:03:01.3]} 6... e6 {[%clk
0:02:59.3]} 7. c3 {[%clk 0:03:01.6]} 7... Be7 {[%clk 0:02:58.6]} 8. d4 {[%clk
0:03:02.2]} 8... O-O {[%clk 0:02:59]} 9. Bf4 {[%clk 0:02:58.3]} 9... Qb6 {[%clk
0:02:55.2]} 10. Qe2 {[%clk 0:02:35.7]} 10... d5 {[%clk 0:02:46.8]} 11. exd5
{[%clk 0:02:31.7]} 11... Nxd5 {[%clk 0:02:46.7]} 12. Bg3 {[%clk 0:02:31.6]}
12... N7f6 {[%clk 0:02:41.5]} 13. c4 {[%clk 0:02:29]} 13... Nb4 {[%clk
0:02:37.5]} 14. d5 {[%clk 0:02:18.3]} 14... exd5 {[%clk 0:02:21.8]} 15. a3
{[%clk 0:02:18.3]} 15... Nc6 {[%clk 0:02:19.9]} 16. Nc3 {[%clk 0:02:17]} 16...
dxc4 {[%clk 0:02:14.3]} 17. Qxc4 {[%clk 0:02:15.3]} 17... Rad8 {[%clk
0:01:41.8]} 18. h3 {[%clk 0:01:50.7]} 18... Bd6 {[%clk 0:01:31.3]} 19. Bh4
{[%clk 0:01:43.7]} 19... Na5 {[%clk 0:01:16.8]} 20. Qa4 {[%clk 0:01:32.5]} 20...
Bc7 {[%clk 0:01:12.7]} 21. Ne4 {[%clk 0:01:19.3]} 21... Nxe4 {[%clk 0:00:46]}
22. Bxd8 {[%clk 0:01:18.9]} 22... Bxd8 {[%clk 0:00:44.8]} 23. Qxe4 {[%clk
0:01:17]} 23... Qxb2 {[%clk 0:00:44.8]} 24. Rad1 {[%clk 0:01:12.4]} 24... Nc6
{[%clk 0:00:42.6]} 25. Rb1 {[%clk 0:01:04.9]} 25... Qxa3 {[%clk 0:00:40.8]} 26.
Rxb7 {[%clk 0:01:05.2]} 26... Nd4 {[%clk 0:00:32]} 27. Nxd4 {[%clk 0:00:53.4]}
27... cxd4 {[%clk 0:00:32.9]} 28. Qxd4 {[%clk 0:00:51.2]} 28... Bb6 {[%clk
0:00:33.4]} 29. Qf4 {[%clk 0:00:49.7]} 29... Bc5 {[%clk 0:00:22.6]} 30. Re8
{[%clk 0:00:26.3]} 30... Qa2 {[%clk 0:00:15.6]} 31. Rbb8 {[%clk 0:00:20.5]}
31... g6 {[%clk 0:00:13]} 32. Rxf8+ {[%clk 0:00:20.2]} 32... Bxf8 {[%clk
0:00:13]} 33. Qd6 {[%clk 0:00:19.1]} 33... Qa1+ {[%clk 0:00:13.4]} 34. Kh2
{[%clk 0:00:19.6]} 34... Qg7 {[%clk 0:00:14.3]} 35. Qd8 {[%clk 0:00:15.9]} 35...
h5 {[%clk 0:00:13.4]} 36. h4 {[%clk 0:00:14.9]} 36... Qe5+ {[%clk 0:00:13.1]}
37. g3 {[%clk 0:00:15.3]} 37... Qc5 {[%clk 0:00:13.4]} 38. Qf6 {[%clk 0:00:12]}
38... a5 {[%clk 0:00:09.3]} 39. Ra8 {[%clk 0:00:11.5]} 39... Qb4 {[%clk
0:00:06.7]} 40. Qf3 {[%clk 0:00:11.1]} 40... Qd6 {[%clk 0:00:05.9]} 41. Kg2
{[%clk 0:00:11.7]} 41... Kg7 {[%clk 0:00:06.5]} 42. Ra7 {[%clk 0:00:12]} 42...
Be7 {[%clk 0:00:06.3]} 43. Qe4 {[%clk 0:00:11.6]} 43... Bf6 {[%clk 0:00:06.4]}
44. Qb7 {[%clk 0:00:11.3]} 44... Qe6 {[%clk 0:00:06.2]} 45. Rxa5 {[%clk
0:00:10.4]} 45... Bd4 {[%clk 0:00:06.3]} 46. Qf3 {[%clk 0:00:06.8]} 46... Bf6
{[%clk 0:00:06.3]} 47. Ra8 {[%clk 0:00:07.3]} 47... Qe7 {[%clk 0:00:06.6]} 48.
Ra6 {[%clk 0:00:07.4]} 48... Bd4 {[%clk 0:00:06.8]} 49. Rc6 {[%clk 0:00:07.9]}
49... Bf6 {[%clk 0:00:07.1]} 50. Rc2 {[%clk 0:00:08]} 50... Bd4 {[%clk
0:00:07.2]} 51. Re2 {[%clk 0:00:08.6]} 51... Qc5 {[%clk 0:00:07.5]} 52. Qe4
{[%clk 0:00:08.4]} 52... Bf6 {[%clk 0:00:07.5]} 53. Rc2 {[%clk 0:00:08.5]} 53...
Qb5 {[%clk 0:00:05.5]} 54. Qf3 {[%clk 0:00:08.2]} 54... Qa6 {[%clk 0:00:04.5]}
55. Rc5 {[%clk 0:00:07.8]} 55... Qa1 {[%clk 0:00:04.8]} 56. Rc4 {[%clk
0:00:07.6]} 56... Qa6 {[%clk 0:00:04.8]} 57. Rf4 {[%clk 0:00:08.1]} 57... Qd6
{[%clk 0:00:04.7]} 58. Qe4 {[%clk 0:00:07.8]} 58... Qe5 {[%clk 0:00:04.2]} 59.
Qxe5 {[%clk 0:00:07.7]} 59... Bxe5 {[%clk 0:00:05.1]} 60. Ra4 {[%clk 0:00:08]}
60... Bf6 {[%clk 0:00:05.7]} 61. Ra6 {[%clk 0:00:07.8]} 61... g5 {[%clk
0:00:05.6]} 62. hxg5 {[%clk 0:00:07.2]} 62... Bxg5 {[%clk 0:00:06.5]} 63. Kf3
{[%clk 0:00:07.6]} 63... h4 {[%clk 0:00:06.5]} 64. Kg4 {[%clk 0:00:06.4]} 64...
hxg3 {[%clk 0:00:04.7]} 65. Kxg5 {[%clk 0:00:06.4]} 65... gxf2 {[%clk 0:00:05]}
66. Ra1 {[%clk 0:00:07]} 66... f6+ {[%clk 0:00:04.6]} 67. Kf5 {[%clk 0:00:06.8]}
67... Kh6 {[%clk 0:00:05.3]} 68. Rf1 {[%clk 0:00:07.5]} 68... Kh5 {[%clk
0:00:06.2]} 69. Rh1# {[%clk 0:00:07.3]} 1-0

[Event "Early-Titled-Tuesday-Blitz-April-16-2024"]
[Site "Chess.com"]
[Date "2024.04.16"]
[Round "7"]
[White "ViktoriyaTarasova"]
[Black "WindWhistler11"]
[Result "1-0"]
[WhiteElo "2372"]
[BlackElo "2506"]
[TimeControl "180+1"]
[EndTime "9:22:36 PDT"]
[Termination "ViktoriyaTarasova won by resignation"]

1. d4 {[%clk 0:03:00.5]} 1... Nf6 {[%clk 0:02:58.8]} 2. c4 {[%clk 0:02:58.5]}
2... e6 {[%clk 0:02:59.2]} 3. Nc3 {[%clk 0:02:58.2]} 3... c5 {[%clk 0:02:59.8]}
4. d5 {[%clk 0:02:58.2]} 4... exd5 {[%clk 0:03:00.4]} 5. cxd5 {[%clk 0:02:58.9]}
5... Bd6 {[%clk 0:03:01]} 6. g3 {[%clk 0:02:53.1]} 6... O-O {[%clk 0:03:00.9]}
7. Bg2 {[%clk 0:02:53.8]} 7... Re8 {[%clk 0:03:01.5]} 8. Nf3 {[%clk 0:02:54.1]}
8... Bc7 {[%clk 0:03:01.9]} 9. O-O {[%clk 0:02:54.2]} 9... d6 {[%clk 0:03:02]}
10. Nd2 {[%clk 0:02:51.8]} 10... b6 {[%clk 0:02:49]} 11. e4 {[%clk 0:02:49.9]}
11... Ba6 {[%clk 0:02:39.2]} 12. Re1 {[%clk 0:02:49.6]} 12... b5 {[%clk
0:02:38.3]} 13. a4 {[%clk 0:02:38]} 13... b4 {[%clk 0:02:35.4]} 14. Nb5 {[%clk
0:02:38.6]} 14... Nbd7 {[%clk 0:02:25.8]} 15. b3 {[%clk 0:02:34.3]} 15... Ne5
{[%clk 0:02:19.3]} 16. Bf1 {[%clk 0:02:33.1]} 16... Bc8 {[%clk 0:02:12.7]} 17.
Bb2 {[%clk 0:02:29]} 17... Bb6 {[%clk 0:01:50.4]} 18. Bxe5 {[%clk 0:02:22.6]}
18... dxe5 {[%clk 0:01:30.7]} 19. Nc4 {[%clk 0:02:20.4]} 19... a6 {[%clk
0:01:27.4]} 20. Nbd6 {[%clk 0:02:18.6]} 20... Re7 {[%clk 0:01:18.1]} 21. a5
{[%clk 0:02:18.1]} 21... Ba7 {[%clk 0:01:08.5]} 22. Nxc8 {[%clk 0:02:09.2]}
22... Qxc8 {[%clk 0:01:04.8]} 23. d6 {[%clk 0:02:05.2]} 23... Re8 {[%clk
0:00:59.2]} 24. Qd2 {[%clk 0:01:54.8]} 24... Qc6 {[%clk 0:00:57.2]} 25. Rad1
{[%clk 0:01:50.7]} 25... Rad8 {[%clk 0:00:49.4]} 26. Qb2 {[%clk 0:01:31.7]}
26... Nd7 {[%clk 0:00:25.4]} 27. Rd5 {[%clk 0:01:23.5]} 27... f6 {[%clk
0:00:21.8]} 28. Red1 {[%clk 0:01:23.5]} 28... Nf8 {[%clk 0:00:21.2]} 29. Bh3
{[%clk 0:01:22.9]} 29... Ne6 {[%clk 0:00:20.1]} 30. Bxe6+ {[%clk 0:01:21.9]}
30... Rxe6 {[%clk 0:00:21]} 31. Qe2 {[%clk 0:01:03.3]} 31... Bb8 {[%clk
0:00:19.2]} 32. d7 {[%clk 0:01:02.3]} 32... Re7 {[%clk 0:00:16.9]} 33. Qg4
{[%clk 0:01:00]} 33... Kf7 {[%clk 0:00:15.2]} 34. h4 {[%clk 0:00:56.4]} 34...
Qe6 {[%clk 0:00:10.8]} 35. Qh5+ {[%clk 0:00:54.9]} 35... Kg8 {[%clk 0:00:11]}
36. Nb6 {[%clk 0:00:51]} 36... Bc7 {[%clk 0:00:09.9]} 37. Qf5 {[%clk 0:00:39.2]}
37... Bxb6 {[%clk 0:00:05.6]} 38. Qxe6+ {[%clk 0:00:34.8]} 38... Rxe6 {[%clk
0:00:06.5]} 39. axb6 {[%clk 0:00:35.3]} 39... Rxb6 {[%clk 0:00:07]} 40. Rxc5
{[%clk 0:00:35.8]} 40... Kf7 {[%clk 0:00:06.2]} 41. Ra5 {[%clk 0:00:13.9]} 41...
Ke7 {[%clk 0:00:06.2]} 42. Kg2 {[%clk 0:00:14.5]} 42... Rxd7 {[%clk 0:00:06.2]}
43. Rxd7+ {[%clk 0:00:14]} 43... Kxd7 {[%clk 0:00:07.1]} 44. Rd5+ {[%clk
0:00:13.7]} 44... Ke6 {[%clk 0:00:06.8]} 45. Rd8 {[%clk 0:00:11]} 45... Rb7
{[%clk 0:00:05.8]} 46. Ra8 {[%clk 0:00:10.7]} 46... Rb6 {[%clk 0:00:05.8]} 47.
Kf3 {[%clk 0:00:11.1]} 47... Kf7 {[%clk 0:00:04.7]} 48. h5 {[%clk 0:00:10.6]}
48... Rc6 {[%clk 0:00:04.2]} 49. Ra7+ {[%clk 0:00:10.7]} 49... Kf8 {[%clk
0:00:04.3]} 50. Kg4 {[%clk 0:00:10]} 50... Rc2 {[%clk 0:00:03.5]} 51. f4 {[%clk
0:00:09.8]} 51... exf4 {[%clk 0:00:03.5]} 52. gxf4 {[%clk 0:00:09.9]} 52... Re2
{[%clk 0:00:04.2]} 53. Kf5 {[%clk 0:00:09.5]} 53... Rg2 {[%clk 0:00:03.5]} 54.
Rxa6 {[%clk 0:00:08.6]} 54... Rb2 {[%clk 0:00:02]} 55. Ra8+ {[%clk 0:00:08.4]}
55... Ke7 {[%clk 0:00:02.2]} 56. Ra7+ {[%clk 0:00:09.1]} 56... Kd6 {[%clk
0:00:02.6]} 57. Rxg7 {[%clk 0:00:09]} 57... Rxb3 {[%clk 0:00:03.2]} 58. Rxh7
{[%clk 0:00:09.4]} 58... Kc5 {[%clk 0:00:03.2]} 59. Kxf6 {[%clk 0:00:09.5]}
59... Re3 {[%clk 0:00:03.4]} 60. e5 {[%clk 0:00:08.3]} 60... b3 {[%clk
0:00:03.7]} 61. Rb7 {[%clk 0:00:07.3]} 61... Kc6 {[%clk 0:00:03.4]} 62. Rb8
{[%clk 0:00:06]} 62... Kd5 {[%clk 0:00:03.7]} 63. h6 {[%clk 0:00:05.1]} 63...
Rh3 {[%clk 0:00:03.1]} 64. Kg7 {[%clk 0:00:04.1]} 64... Kc4 {[%clk 0:00:02.4]}
65. h7 {[%clk 0:00:03.7]} 65... Rg3+ {[%clk 0:00:03.1]} 66. Kf7 {[%clk
0:00:02.5]} 66... Rh3 {[%clk 0:00:03.4]} 67. h8=Q {[%clk 0:00:02.6]} 67... Rxh8
{[%clk 0:00:03.9]} 68. Rxh8 {[%clk 0:00:02.6]} 68... b2 {[%clk 0:00:04.7]} 69.
Rb8 {[%clk 0:00:03]} 69... b1=Q {[%clk 0:00:05.6]} 70. Rxb1 {[%clk 0:00:03.3]}
1-0

[Event "Early-Titled-Tuesday-Blitz-April-16-2024"]
[Site "Chess.com"]
[Date "2024.04.16"]
[Round "7"]
[White "Elnaz_Kaliakhmet"]
[Black "Veleamater"]
[Result "0-1"]
[WhiteElo "2550"]
[BlackElo "2423"]
[TimeControl "180+1"]
[EndTime "9:22:42 PDT"]
[Termination "Veleamater won on time"]

1. d4 {[%clk 0:03:00.9]} 1... d6 {[%clk 0:03:00.9]} 2. c4 {[%clk 0:02:59.7]}
2... g6 {[%clk 0:03:01.5]} 3. Nc3 {[%clk 0:02:58.6]} 3... Bg7 {[%clk 0:03:02]}
4. e4 {[%clk 0:02:58.3]} 4... Nf6 {[%clk 0:03:02.4]} 5. h3 {[%clk 0:02:58.5]}
5... O-O {[%clk 0:03:02.8]} 6. Be3 {[%clk 0:02:58.8]} 6... Nc6 {[%clk
0:03:03.3]} 7. d5 {[%clk 0:02:58]} 7... Ne5 {[%clk 0:03:03.2]} 8. f4 {[%clk
0:02:58.6]} 8... Ned7 {[%clk 0:03:02.2]} 9. Nf3 {[%clk 0:02:57.9]} 9... c6
{[%clk 0:03:01]} 10. Bd3 {[%clk 0:02:53.7]} 10... Nc5 {[%clk 0:02:56.7]} 11. Bc2
{[%clk 0:02:52.9]} 11... cxd5 {[%clk 0:02:54.1]} 12. cxd5 {[%clk 0:02:50.5]}
12... b6 {[%clk 0:02:52.7]} 13. O-O {[%clk 0:02:48.6]} 13... Bb7 {[%clk
0:02:52.8]} 14. Rc1 {[%clk 0:02:40.9]} 14... a5 {[%clk 0:02:32.5]} 15. Qd2
{[%clk 0:02:34.5]} 15... Qd7 {[%clk 0:02:21.8]} 16. Rfd1 {[%clk 0:02:29]} 16...
b5 {[%clk 0:02:05.8]} 17. e5 {[%clk 0:02:16.7]} 17... b4 {[%clk 0:01:53.8]} 18.
exf6 {[%clk 0:01:56.9]} 18... bxc3 {[%clk 0:01:52.8]} 19. bxc3 {[%clk
0:01:53.5]} 19... Bxf6 {[%clk 0:01:45.2]} 20. Bxc5 {[%clk 0:01:52.5]} 20... dxc5
{[%clk 0:01:44.5]} 21. c4 {[%clk 0:01:53]} 21... Rfd8 {[%clk 0:01:40.4]} 22. Qe3
{[%clk 0:01:51.1]} 22... Rab8 {[%clk 0:01:34.5]} 23. Qxc5 {[%clk 0:01:47.4]}
23... Rdc8 {[%clk 0:01:26.6]} 24. Qxa5 {[%clk 0:01:35.9]} 24... Rxc4 {[%clk
0:01:25.8]} 25. Ne5 {[%clk 0:01:22.6]} 25... Bxe5 {[%clk 0:01:16.5]} 26. fxe5
{[%clk 0:01:23.5]} 26... Rbc8 {[%clk 0:01:16.4]} 27. Rd2 {[%clk 0:01:01.4]}
27... R8c5 {[%clk 0:01:14.9]} 28. Qa7 {[%clk 0:00:37.1]} 28... Qc8 {[%clk
0:01:12.9]} 29. Rb1 {[%clk 0:00:34.2]} 29... Rxc2 {[%clk 0:01:07.4]} 30. Rxc2
{[%clk 0:00:34.2]} 30... Rxc2 {[%clk 0:01:07.3]} 31. Qxb7 {[%clk 0:00:34.2]}
31... Qc5+ {[%clk 0:01:02]} 32. Kh2 {[%clk 0:00:31.4]} 32... Qf2 {[%clk
0:01:01]} 33. d6 {[%clk 0:00:19.7]} 33... Qf4+ {[%clk 0:00:58.8]} 34. Kh1 {[%clk
0:00:19.2]} 34... exd6 {[%clk 0:00:55.4]} 35. Qb8+ {[%clk 0:00:10.7]} 35... Kg7
{[%clk 0:00:54]} 36. Qxd6 {[%clk 0:00:09.6]} 36... Rxa2 {[%clk 0:00:36.6]} 37.
Rg1 {[%clk 0:00:07.1]} 37... Re2 {[%clk 0:00:34.2]} 38. Qa6 {[%clk 0:00:04.9]}
38... Rxe5 {[%clk 0:00:33.5]} 39. Rf1 {[%clk 0:00:03.9]} 39... Re6 {[%clk
0:00:27.6]} 40. Qa1+ {[%clk 0:00:02.8]} 40... Qe5 {[%clk 0:00:27.7]} 41. Qa7
{[%clk 0:00:02.6]} 41... Re7 {[%clk 0:00:26.9]} 42. Qf2 {[%clk 0:00:03.1]} 42...
h5 {[%clk 0:00:26.5]} 43. Qf3 {[%clk 0:00:02.6]} 43... Rc7 {[%clk 0:00:24.4]}
44. Qf2 {[%clk 0:00:02.5]} 44... g5 {[%clk 0:00:22.5]} 45. Qf3 {[%clk
0:00:02.4]} 45... Kg6 {[%clk 0:00:21.9]} 46. Qd3+ {[%clk 0:00:01.9]} 46... Kh6
{[%clk 0:00:20.3]} 47. Qf3 {[%clk 0:00:02.5]} 47... Qe6 {[%clk 0:00:18.3]} 48.
Qf2 {[%clk 0:00:02.9]} 48... Qg6 {[%clk 0:00:17.3]} 49. Qd4 {[%clk 0:00:03.2]}
49... Re7 {[%clk 0:00:17]} 50. Rf6 {[%clk 0:00:02.9]} 50... Re1+ {[%clk
0:00:16.7]} 51. Kh2 {[%clk 0:00:03.1]} 51... Re6 {[%clk 0:00:15.1]} 52. Rxg6+
{[%clk 0:00:03]} 52... Kxg6 {[%clk 0:00:15.5]} 53. Qd3+ {[%clk 0:00:02.8]} 53...
Kg7 {[%clk 0:00:14.9]} 54. Qd4+ {[%clk 0:00:03.1]} 54... Kg6 {[%clk 0:00:15.2]}
55. Qd5 {[%clk 0:00:03.8]} 55... Rf6 {[%clk 0:00:14.9]} 56. Kg3 {[%clk
0:00:03.8]} 56... h4+ {[%clk 0:00:14.7]} 57. Kh2 {[%clk 0:00:04.2]} 57... Rf4
{[%clk 0:00:13.9]} 58. Qd8 {[%clk 0:00:02.5]} 58... Rf6 {[%clk 0:00:12.5]} 59.
Qg8+ {[%clk 0:00:02.8]} 59... Kh6 {[%clk 0:00:12.4]} 60. Kg1 {[%clk 0:00:02]}
60... Rf4 {[%clk 0:00:11.3]} 61. Qf8+ {[%clk 0:00:01.4]} 61... Kg6 {[%clk
0:00:10.9]} 62. Qd6+ {[%clk 0:00:01.9]} 62... Kg7 {[%clk 0:00:10.4]} 63. Qe5+
{[%clk 0:00:01.9]} 63... Kg6 {[%clk 0:00:10.7]} 64. Kh2 {[%clk 0:00:02.2]} 64...
Rf6 {[%clk 0:00:09]} 65. g3 {[%clk 0:00:02.2]} 65... hxg3+ {[%clk 0:00:08.9]}
66. Kxg3 {[%clk 0:00:02.6]} 66... Rf4 {[%clk 0:00:09.1]} 67. Qe8 {[%clk
0:00:02.2]} 67... Kg7 {[%clk 0:00:05.8]} 68. Qb8 {[%clk 0:00:01.1]} 68... Kg6
{[%clk 0:00:02.5]} 69. Qb1+ {[%clk 0:00:01.1]} 69... Kg7 {[%clk 0:00:02]} 0-1